lending/lending_fUSD_20241007
["ID","MTS","AMOUNT","RATE_DAILY","PERIOD"]
[340013297,1728328280682,-1000.0,0.000398,120]
[340013298,1728328280697,-1000.0,0.000398,120]
[340013299,1728328280711,-1000.0,0.000398,120]
[340013300,1728328280725,-1000.0,0.000398,120]
[340013301,1728328280740,-1000.0,0.000398,120]
[340013302,1728328280753,-1000.0,0.000398,120]
[340013303,1728328280768,-1000.0,0.000398,120]
[340013304,1728328280782,-957.32580989,0.000398,120]
[340013305,1728328280796,-150.0,0.00039839,7]
[340013306,1728328280810,-50000.0,0.00039887,30]
[340013307,1728328280824,-10133.40481532,0.000399,120]
[340013308,1728328280839,-734.07884298,0.000399,120]
[340013309,1728328280853,-734.07884298,0.000399,120]
[340013310,1728328280867,-734.07884298,0.000399,120]
[340013311,1728328280882,-734.07884298,0.000399,120]
[340013312,1728328280895,-734.07884298,0.000399,120]
[340013313,1728328280909,-734.07884298,0.000399,120]
[340013314,1728328280923,-734.07884298,0.000399,120]
[340013315,1728328280937,-734.07884298,0.000399,120]
[340013316,1728328280951,-734.07884298,0.000399,120]
[340013317,1728328280964,-734.07884298,0.000399,120]
[340013318,1728328280980,-734.07884298,0.000399,120]
[340013319,1728328280994,-734.07884298,0.000399,120]
[340013320,1728328281122,-734.07884298,0.000399,120]
[340013321,1728328281138,-734.07884298,0.000399,120]
[340013322,1728328281148,-734.07884298,0.000399,120]
[340013323,1728328281157,-734.07884298,0.000399,120]
[340013324,1728328281166,-734.07884298,0.000399,120]
[340013325,1728328281175,-734.07884298,0.000399,120]
[340013326,1728328281184,-734.07884298,0.000399,120]
[340013327,1728328281194,-734.57,0.000399,120]
[340013328,1728328281203,-1015.94653505,0.000399,120]
[340013329,1728328281213,-1015.94653505,0.000399,120]
[340013330,1728328281223,-1015.94653505,0.000399,120]
[340013331,1728328281232,-1015.94653505,0.000399,120]
[340013332,1728328281241,-1015.94653505,0.000399,120]
[340013333,1728328281250,-1015.94653505,0.000399,120]
[340013334,1728328281259,-1015.94653505,0.000399,120]
[340013335,1728328281268,-1015.94653505,0.000399,120]
[340013336,1728328281277,-1015.94653505,0.000399,120]
[340013337,1728328281286,-1015.94653505,0.000399,120]
[340013338,1728328281295,-1015.94653505,0.000399,120]
[340013339,1728328281304,-1015.94653505,0.000399,120]
[340013340,1728328281313,-1015.94653505,0.000399,120]
[340013341,1728328281322,-1015.94653505,0.000399,120]
[340013342,1728328281331,-1015.94653505,0.000399,120]
[340013343,1728328281340,-1015.94653505,0.000399,120]
[340013344,1728328281349,-1015.94653505,0.000399,120]
[340013345,1728328281361,-1015.94653505,0.000399,120]
[340013346,1728328281370,-1015.94653505,0.000399,120]
[340013347,1728328281379,-1016.44,0.000399,120]
[340013348,1728328281389,-1067.3876551,0.000399,120]
[340013349,1728328281398,-1067.3876551,0.000399,120]
[340013350,1728328281407,-1067.3876551,0.000399,120]
[340013351,1728328281416,-1067.3876551,0.000399,120]
[340013352,1728328281426,-1067.3876551,0.000399,120]
[340013353,1728328281435,-1067.3876551,0.000399,120]
[340013354,1728328281444,-1067.3876551,0.000399,120]
[340013355,1728328281453,-1067.3876551,0.000399,120]
[340013356,1728328281463,-1067.3876551,0.000399,120]
[340013357,1728328281472,-1067.3876551,0.000399,120]
[340013358,1728328281481,-1067.3876551,0.000399,120]
[340013359,1728328281491,-1067.3876551,0.000399,120]
[340013360,1728328281500,-1067.3876551,0.000399,120]
[340013361,1728328281510,-1067.3876551,0.000399,120]
[340013362,1728328281519,-1067.3876551,0.000399,120]
[340013363,1728328281530,-1067.3876551,0.000399,120]
[340013364,1728328281539,-1067.3876551,0.000399,120]
[340013365,1728328281548,-1067.3876551,0.000399,120]
[340013366,1728328281558,-1067.3876551,0.000399,120]
[340013367,1728328281567,-1067.88,0.000399,120]
[340013368,1728328281576,-150.0,0.00039926,7]
[340013369,1728328281586,-150.0,0.00039948,7]
[340013370,1728328281595,-150.0,0.00039948,7]
[340013371,1728328281606,-25926.9867936,0.00039973,2]
[340013372,1728328281615,-28131.1516512,0.00039973,2]
[340013373,1728328281624,-15311.324338,0.00039973,2]
[340013374,1728328281633,-16613.0059911,0.00039973,2]
[340013375,1728328281642,-6526.8959196,0.00039973,2]
[340013376,1728328281651,-7065.8097343,0.00039973,2]
[340013377,1728328281661,-1053.8058538,0.00039973,2]
[340013378,1728328281671,-1112.4514998,0.00039973,2]
[340013379,1728328281680,-1727.9621611,0.00039973,2]
[340013380,1728328281689,-1824.1254694,0.00039973,2]
[340013381,1728328281699,-70282.8536205,0.00039973,2]
[340013382,1728328281708,-74194.1844779,0.00039973,2]
[340013383,1728328281718,-357.5670158,0.0003999,120]
[340013384,1728328281727,-50000.0,0.0004,30]
[340013385,1728328281735,-50000.0,0.0004,40]
[340013386,1728328281745,-755.53246091,0.0004,120]
[340013387,1728328281753,-2110.0,0.0004,2]
[340013388,1728328281763,-1109.8,0.0004,60]
[340013389,1728328281772,-2000.0,0.0004,120]
[340013390,1728328281781,-193325.28,0.0004,60]
[340013391,1728328281790,-210319.99970572,0.0004,60]
[340013392,1728328281799,-575673.48042314,0.0004,60]
[340013393,1728328281808,-439.5447238,0.0004,120]
[340013394,1728328281817,-5000.0,0.0004,120]
[340013395,1728328281826,-3771.12935584,0.0004,120]
[340013396,1728328281835,-388024.21423796,0.0004,60]
[340013397,1728328282076,-39322.6905001,0.0004,60]
[340013398,1728328282085,-7795.14566488,0.0004,90]
[340013399,1728328282095,-1000.0,0.0004,120]
[340013400,1728328282106,-3593.59363515,0.0004,30]
[340013401,1728328282120,-1461.47293914,0.0004,30]
[340013402,1728328282139,-1740.45473605,0.0004,30]
[340013403,1728328282216,-828.481,0.0004,30]
[340013404,1728328282228,-1420.92,0.0004,30]
[340013405,1728328282239,-989.22878096,0.0004,30]
[340013406,1728328282250,-952.47687904,0.0004,30]
[340013407,1728328282262,-496.07624443,0.0004,30]
[340013408,1728328282273,-2518.025186,0.0004,30]
[340013409,1728328282384,-500.0,0.00038356,120]
[340013410,1728328282394,-307.83719621,0.0003863,120]
[340013411,1728328282405,-192.16280379,0.0003863,120]
[340013412,1728328282504,-500.0,0.00038904,120]
[340013413,1728328282514,-500.0,0.00039178,120]
[340013414,1728328282523,-500.0,0.00039452,120]
[340013415,1728328282534,-611.54,0.00039726,120]
[340013416,1728328282543,-4890.85398195,0.0004,30]
[340013417,1728328282555,-4666.82859262,0.0004,30]
[340013418,1728328282564,-4040.14,0.0004,60]
[340013419,1728328282574,-160.67586594,0.0004,120]
[340013420,1728328282583,-1000.0,0.0004,120]
[340013421,1728328282593,-157.25764113,0.0004,120]
[340013422,1728328282602,-3000.0,0.0004,2]
[340013423,1728328282622,-500.0,0.0004,120]
[340013424,1728328282631,-500.0,0.0004,120]
[340013425,1728328282640,-1500.0,0.0004,2]
[340013426,1728328282650,-512.80646379,0.0004,120]
[340013427,1728328282659,-205.0,0.0004,2]
[340013428,1728328282669,-29754.4536926,0.0004,30]
[340013429,1728328282678,-34049.61276374,0.0004,30]
[340013430,1728328282687,-529.8629229,0.0004,120]
[340013431,1728328282697,-460.3790655,0.0004,120]
[340013432,1728328282706,-500.0,0.0004,120]
[340013433,1728328282716,-235.32,0.0004,120]
[340013434,1728328282726,-606.29874346,0.0004,120]
[340013435,1728328282735,-500.0,0.0004,120]
[340013436,1728328282745,-344.18538716,0.0004,120]
[340013437,1728328282754,-194.94,0.0004,120]
[340013438,1728328282763,-500.0,0.0004,120]
[340013439,1728328282773,-500.0,0.0004,120]
[340013440,1728328282783,-500.0,0.0004,120]
[340013441,1728328282792,-500.0,0.0004,120]
[340013442,1728328282801,-151.0,0.0004,14]
[340013443,1728328282811,-151.0,0.0004,14]
[340013444,1728328282820,-246.485568,0.0004,14]
[340013445,1728328282830,-500.0,0.0004,120]
[340013446,1728328282839,-500.0,0.0004,120]
[340013447,1728328282848,-500.0,0.0004,120]
[340013448,1728328282858,-500.0,0.0004,120]
[340013449,1728328282867,-526.85,0.0004,120]
[340013450,1728328282876,-500.0,0.0004,120]
[340013451,1728328282886,-500.0,0.0004,120]
[340013452,1728328282895,-500.0,0.0004,120]
[340013453,1728328282905,-500.0,0.0004,120]
[340013454,1728328282915,-500.0,0.0004,120]
[340013455,1728328282925,-500.0,0.0004,120]
[340013456,1728328282934,-500.0,0.0004,120]
[340013457,1728328282943,-227.98509559,0.0004,120]
[340013458,1728328282953,-546.81,0.0004,120]
[340013459,1728328282963,-500.83859432,0.0004,2]
[340013460,1728328282972,-500.0,0.0004,120]
[340013461,1728328282981,-500.0,0.0004,120]
[340013462,1728328282991,-500.0,0.0004,120]
[340013463,1728328283001,-151.989208,0.0004,120]
[340013464,1728328283010,-500.0,0.0004,120]
[340013465,1728328283019,-500.0,0.0004,120]
[340013466,1728328283028,-500.0,0.0004,120]
[340013467,1728328283037,-1790.58,0.0004,120]
[340013468,1728328283047,-500.0,0.0004,30]
[340013469,1728328283055,-500.0,0.0004,120]
[340013470,1728328283064,-500.0,0.0004,120]
[340013471,1728328283073,-500.0,0.0004,120]
[340013472,1728328283083,-500.0,0.0004,120]
[340013473,1728328283092,-500.0,0.0004,120]
[340013474,1728328283101,-496.48454521,0.0004,120]
[340013475,1728328283111,-500.0,0.0004,120]
[340013476,1728328283120,-500.0,0.0004,120]
[340013477,1728328283133,-332.91893397,0.0004,120]
[340013478,1728328283142,-500.0,0.0004,120]
[340013479,1728328283151,-500.0,0.0004,120]
[340013480,1728328283160,-500.0,0.0004,120]
[340013481,1728328283169,-641.52,0.0004,120]
[340013482,1728328283179,-500.0,0.0004,120]
[340013483,1728328283188,-500.0,0.0004,120]
[340013484,1728328283198,-500.0,0.0004,120]
[340013485,1728328283208,-500.0,0.0004,120]
[340013486,1728328283218,-500.0,0.0004,120]
[340013487,1728328283227,-500.0,0.0004,120]
[340013488,1728328283237,-500.0,0.0004,120]
[340013489,1728328283247,-500.0,0.0004,120]
[340013490,1728328283256,-500.0,0.0004,120]
[340013491,1728328283266,-500.0,0.0004,120]
[340013492,1728328283275,-500.0,0.0004,120]
[340013493,1728328283285,-500.0,0.0004,120]
[340013494,1728328283295,-500.0,0.0004,120]
[340013495,1728328283304,-500.0,0.0004,120]
[340013496,1728328283314,-500.0,0.0004,120]
[340013497,1728328283324,-500.0,0.0004,120]
[340013498,1728328283333,-500.0,0.0004,120]
[340013499,1728328283343,-337.97148887,0.0004,120]
[340013500,1728328283353,-500.0,0.0004,120]
[340013501,1728328283363,-500.0,0.0004,120]
[340013502,1728328283373,-500.0,0.0004,120]
[340013503,1728328283382,-500.0,0.0004,120]
[340013504,1728328283391,-500.0,0.0004,120]
[340013505,1728328283401,-500.0,0.0004,120]
[340013506,1728328283410,-546.74,0.0004,120]
[340013507,1728328283419,-500.0,0.0004,120]
[340013508,1728328283429,-500.0,0.0004,120]
[340013509,1728328283438,-500.0,0.0004,30]
[340013510,1728328283448,-500.0,0.0004,120]
[340013511,1728328283457,-500.0,0.0004,120]
[340013512,1728328283467,-293.08,0.0004,120]
[340013513,1728328283476,-500.0,0.0004,120]
[340013514,1728328283485,-500.0,0.0004,120]
[340013515,1728328283494,-500.0,0.0004,120]
[340013516,1728328283504,-500.0,0.0004,120]
[340013517,1728328283514,-500.0,0.0004,120]
[340013518,1728328283524,-500.0,0.0004,120]
[340013519,1728328283535,-213.7,0.0004,120]
[340013520,1728328283544,-500.0,0.0004,120]
[340013521,1728328283554,-500.0,0.0004,120]
[340013522,1728328283563,-500.0,0.0004,120]
[340013523,1728328283573,-500.0,0.0004,120]
[340013524,1728328283582,-639.37886155,0.0004,120]
[340013525,1728328283591,-500.0,0.0004,120]
[340013526,1728328283601,-500.0,0.0004,120]
[340013527,1728328283613,-459.91094858,0.0004,120]
[340013528,1728328283622,-343.60420419,0.0004,120]
[340013529,1728328283631,-500.0,0.0004,120]
[340013530,1728328283641,-500.0,0.0004,120]
[340013531,1728328283651,-500.0,0.0004,120]
[340013532,1728328283661,-182.09679431,0.0004,120]
[340013533,1728328283670,-500.0,0.0004,120]
[340013534,1728328283680,-500.0,0.0004,120]
[340013535,1728328283690,-500.0,0.0004,120]
[340013536,1728328283699,-500.0,0.0004,120]
[340013537,1728328283709,-159.80260828,0.0004,120]
[340013538,1728328283719,-500.0,0.0004,120]
[340013539,1728328283728,-500.0,0.0004,120]
[340013540,1728328283739,-500.0,0.0004,120]
[340013541,1728328283749,-500.0,0.0004,120]
[340013542,1728328283759,-500.0,0.0004,120]
[340013543,1728328283769,-500.0,0.0004,120]
[340013544,1728328283868,-500.0,0.0004,120]
[340013545,1728328283878,-500.0,0.0004,120]
[340013546,1728328283888,-500.0,0.0004,120]
[340013547,1728328283898,-500.0,0.0004,120]
[340013548,1728328283907,-500.0,0.0004,120]
[340013549,1728328283917,-567.69155935,0.0004,120]
[340013550,1728328283926,-500.0,0.0004,120]
[340013551,1728328283937,-368.62928414,0.0004,120]
[340013552,1728328283946,-503.0,0.0004,120]
[340013553,1728328283956,-1259.32,0.0004,120]
[340013554,1728328283967,-500.0,0.0004,120]
[340013555,1728328283977,-345.2407698,0.0004,120]
[340013556,1728328283987,-500.0,0.0004,120]
[340013557,1728328283996,-500.0,0.0004,120]
[340013558,1728328284006,-10000.0,0.0004,14]
[340013559,1728328284016,-10000.0,0.0004,14]
[340013560,1728328284025,-10000.0,0.0004,14]
[340013561,1728328284034,-500.0,0.0004,120]
[340013562,1728328284044,-500.0,0.0004,14]
[340013563,1728328284053,-512.09,0.0004,120]
[340013564,1728328284063,-500.0,0.0004,120]
[340013565,1728328284072,-161.55,0.0004,120]
[340013566,1728328284082,-500.0,0.0004,120]
[340013567,1728328284092,-255.16291171,0.0004,120]
[340013568,1728328284101,-591.77,0.0004,120]
[340013569,1728328284116,-500.0,0.0004,120]
[340013570,1728328284125,-538.11,0.0004,120]
[340013571,1728328284139,-500.0,0.0004,120]
[340013572,1728328284148,-500.0,0.0004,120]
[340013573,1728328284158,-656.69,0.0004,120]
[340013574,1728328284167,-614.39,0.0004,120]
[340013575,1728328284178,-500.0,0.0004,120]
[340013576,1728328284187,-500.0,0.0004,120]
[340013577,1728328284197,-500.0,0.0004,120]
[340013578,1728328284209,-500.0,0.0004,120]
[340013579,1728328284218,-500.0,0.0004,120]
[340013580,1728328284228,-318.63150462,0.0004,120]
[340013581,1728328284237,-500.0,0.0004,120]
[340013582,1728328284247,-502.44,0.0004,120]
[340013583,1728328284257,-500.0,0.0004,120]
[340013584,1728328284266,-500.0,0.0004,120]
[340013585,1728328284276,-500.0,0.0004,120]
[340013586,1728328284286,-645.759054,0.0004,14]
[340013587,1728328284295,-500.0,0.0004,120]
[340013588,1728328284305,-645.759054,0.0004,14]
[340013589,1728328284315,-645.759054,0.0004,14]
[340013590,1728328284325,-500.0,0.0004,120]
[340013591,1728328284334,-645.759054,0.0004,14]
[340013592,1728328284343,-645.759054,0.0004,14]
[340013593,1728328284354,-645.759054,0.0004,14]
[340013594,1728328284365,-500.0,0.0004,120]
[340013595,1728328284375,-2246.05,0.0004,120]
[340013596,1728328284386,-500.0,0.0004,120]
[340013597,1728328284395,-336.42,0.0004,120]
[340013598,1728328284405,-500.0,0.0004,120]
[340013599,1728328284415,-500.0,0.0004,120]
[340013600,1728328284425,-354.6,0.0004,120]
[340013601,1728328284434,-500.0,0.0004,120]
[340013602,1728328284444,-500.0,0.0004,120]
[340013603,1728328284454,-241.48100084,0.0004,120]
[340013604,1728328284464,-500.0,0.0004,120]
[340013605,1728328284474,-462.08,0.0004,120]
[340013606,1728328284483,-500.0,0.0004,120]
[340013607,1728328284493,-500.0,0.0004,120]
[340013608,1728328284502,-500.0,0.0004,24]
[340013609,1728328284512,-500.0,0.0004,120]
[340013610,1728328284521,-512.65,0.0004,120]
[340013611,1728328284533,-242.62,0.0004,120]
[340013612,1728328284543,-500.0,0.0004,120]
[340013613,1728328284552,-500.0,0.0004,120]
[340013614,1728328284562,-500.0,0.0004,120]
[340013615,1728328284571,-500.0,0.0004,120]
[340013616,1728328284581,-210.71086709,0.0004,120]
[340013617,1728328284590,-500.0,0.0004,120]
[340013618,1728328284599,-500.0,0.0004,120]
[340013619,1728328284612,-500.0,0.0004,120]
[340013620,1728328284622,-500.0,0.0004,120]
[340013621,1728328284631,-456.79,0.0004,120]
[340013622,1728328284640,-500.0,0.0004,120]
[340013623,1728328284650,-500.0,0.0004,120]
[340013624,1728328284660,-500.0,0.0004,120]
[340013625,1728328284670,-500.0,0.0004,120]
[340013626,1728328284679,-1455.705405,0.0004,14]
[340013627,1728328284688,-1455.705405,0.0004,14]
[340013628,1728328284698,-500.0,0.0004,120]
[340013629,1728328284707,-500.0,0.0004,120]
[340013630,1728328284717,-1455.705405,0.0004,14]
[340013631,1728328284727,-1455.705405,0.0004,14]
[340013632,1728328284736,-500.0,0.0004,120]
[340013633,1728328284746,-2095.07,0.0004,120]
[340013634,1728328284756,-500.0,0.0004,120]
[340013635,1728328284765,-500.0,0.0004,120]
[340013636,1728328284775,-500.0,0.0004,120]
[340013637,1728328284785,-500.0,0.0004,120]
[340013638,1728328284794,-500.0,0.0004,120]
[340013639,1728328284804,-500.0,0.0004,120]
[340013640,1728328284813,-500.0,0.0004,120]
[340013641,1728328284823,-500.0,0.0004,120]
[340013642,1728328284832,-500.0,0.0004,120]
[340013643,1728328284841,-500.0,0.0004,120]
[340013644,1728328284850,-500.0,0.0004,120]
[340013645,1728328284861,-500.0,0.0004,120]
[340013646,1728328284871,-156.13970462,0.0004,120]
[340013647,1728328284880,-500.0,0.0004,120]
[340013648,1728328284889,-1000.0,0.00040003,120]
[340013649,1728328284899,-150.0,0.00040008,7]
[340013650,1728328284908,-150.0,0.00040013,7]
[340013651,1728328284917,-178.09771741,0.0004003,120]
[340013652,1728328284927,-290.97,0.00040087,2]
[340013653,1728328284936,-150.0,0.000401,7]
[340013654,1728328284946,-150.0,0.00040153,7]
[340013655,1728328284955,-150.0,0.00040153,7]
[340013656,1728328284964,-150.0,0.00040187,7]
[340013657,1728328284973,-150.0,0.00040249,7]
[340013658,1728328284983,-492.69139334,0.00040258,28]
[340013659,1728328284992,-500.0,0.00040273,120]
[340013660,1728328285001,-464.57108354,0.00040273,120]
[340013661,1728328285010,-500.0,0.00040273,120]
[340013662,1728328285019,-500.0,0.00040273,120]
[340013663,1728328285029,-507.55057917,0.00040273,120]
[340013664,1728328285038,-500.0,0.00040273,120]
[340013665,1728328285046,-500.0,0.00040273,120]
[340013666,1728328285056,-500.0,0.00040273,120]
[340013667,1728328285065,-500.0,0.00040273,120]
[340013668,1728328285074,-500.0,0.00040273,120]
[340013669,1728328285084,-526.85,0.00040273,120]
[340013670,1728328285094,-446.8761736,0.00040273,120]
[340013671,1728328285105,-251.81163115,0.00040273,120]
[340013672,1728328285115,-500.0,0.00040273,120]
[340013673,1728328285125,-500.0,0.00040273,120]
[340013674,1728328285139,-500.0,0.00040273,120]
[340013675,1728328285148,-500.0,0.00040273,120]
[340013676,1728328285157,-546.81,0.00040273,120]
[340013677,1728328285166,-500.0,0.00040273,120]
[340013678,1728328285177,-500.0,0.00040273,120]
[340013679,1728328285187,-500.0,0.00040273,120]
[340013680,1728328285196,-500.0,0.00040273,120]
[340013681,1728328285205,-500.0,0.00040273,120]
[340013682,1728328285216,-500.0,0.00040273,120]
[340013683,1728328285226,-1790.58,0.00040273,120]
[340013684,1728328285235,-500.0,0.00040273,30]
[340013685,1728328285244,-259.42,0.00040273,120]
[340013686,1728328285252,-500.0,0.00040273,120]
[340013687,1728328285261,-309.30690366,0.00040273,120]
[340013688,1728328285271,-500.0,0.00040273,120]
[340013689,1728328285280,-500.0,0.00040273,120]
[340013690,1728328285289,-500.0,0.00040273,120]
[340013691,1728328285298,-500.0,0.00040273,120]
[340013692,1728328285307,-500.0,0.00040273,120]
[340013693,1728328285317,-500.0,0.00040273,120]
[340013694,1728328285326,-500.0,0.00040273,120]
[340013695,1728328285335,-641.52,0.00040273,120]
[340013696,1728328285344,-500.0,0.00040273,120]
[340013697,1728328285353,-500.0,0.00040273,120]
[340013698,1728328285370,-500.0,0.00040273,120]
[340013699,1728328285379,-470.09056243,0.00040273,120]
[340013700,1728328285388,-288.9,0.00040273,120]
[340013701,1728328285397,-500.0,0.00040273,120]
[340013702,1728328285406,-500.0,0.00040273,120]
[340013703,1728328285416,-508.28957228,0.00040273,120]
[340013704,1728328285425,-500.0,0.00040273,120]
[340013705,1728328285434,-500.0,0.00040273,120]
[340013706,1728328285443,-500.0,0.00040273,120]
[340013707,1728328285452,-500.0,0.00040273,120]
[340013708,1728328285461,-500.0,0.00040273,120]
[340013709,1728328285470,-500.0,0.00040273,120]
[340013710,1728328285479,-500.0,0.00040273,120]
[340013711,1728328285488,-279.82,0.00040273,120]
[340013712,1728328285497,-500.0,0.00040273,120]
[340013713,1728328285507,-500.0,0.00040273,120]
[340013714,1728328285516,-411.85,0.00040273,120]
[340013715,1728328285525,-500.0,0.00040273,120]
[340013716,1728328285535,-500.0,0.00040273,120]
[340013717,1728328285544,-500.0,0.00040273,120]
[340013718,1728328285554,-500.0,0.00040273,120]
[340013719,1728328285563,-546.74,0.00040273,120]
[340013720,1728328285572,-375.36215277,0.00040273,120]
[340013721,1728328285582,-500.0,0.00040273,120]
[340013722,1728328285591,-445.74,0.00040273,120]
[340013723,1728328285601,-197.36411568,0.00040273,30]
[340013724,1728328285613,-500.0,0.00040273,120]
[340013725,1728328285622,-500.0,0.00040273,120]
[340013726,1728328285632,-500.0,0.00040273,120]
[340013727,1728328285641,-500.0,0.00040273,120]
[340013728,1728328285651,-500.0,0.00040273,120]
[340013729,1728328285660,-500.0,0.00040273,120]
[340013730,1728328285669,-500.0,0.00040273,120]
[340013731,1728328285678,-213.7,0.00040273,120]
[340013732,1728328285687,-331.88024197,0.00040273,120]
[340013733,1728328285697,-500.0,0.00040273,120]
[340013734,1728328285706,-500.0,0.00040273,120]
[340013735,1728328285715,-500.0,0.00040273,120]
[340013736,1728328285724,-500.0,0.00040273,120]
[340013737,1728328285734,-500.0,0.00040273,120]
[340013738,1728328285743,-500.0,0.00040273,120]
[340013739,1728328285752,-500.0,0.00040273,120]
[340013740,1728328285762,-500.0,0.00040273,120]
[340013741,1728328285771,-500.0,0.00040273,120]
[340013742,1728328285780,-403.48,0.00040273,120]
[340013743,1728328285791,-285.51774977,0.00040273,120]
[340013744,1728328285800,-500.0,0.00040273,120]
[340013745,1728328285809,-500.0,0.00040273,120]
[340013746,1728328285819,-500.0,0.00040273,120]
[340013747,1728328285829,-500.0,0.00040273,120]
[340013748,1728328285838,-422.00877576,0.00040273,120]
[340013749,1728328285847,-500.0,0.00040273,120]
[340013750,1728328285857,-500.0,0.00040273,120]
[340013751,1728328285867,-500.0,0.00040273,120]
[340013752,1728328285875,-500.0,0.00040273,120]
[340013753,1728328285884,-376.22565666,0.00040273,120]
[340013754,1728328285893,-500.0,0.00040273,120]
[340013755,1728328285903,-503.0,0.00040273,120]
[340013756,1728328285912,-1259.32,0.00040273,120]
[340013757,1728328285922,-500.0,0.00040273,120]
[340013758,1728328285931,-186.965804,0.00040273,120]
[340013759,1728328285940,-500.0,0.00040273,120]
[340013760,1728328285950,-500.0,0.00040273,120]
[340013761,1728328285959,-500.0,0.00040273,14]
[340013762,1728328285968,-512.09,0.00040273,120]
[340013763,1728328285977,-500.0,0.00040273,120]
[340013764,1728328285987,-500.0,0.00040273,120]
[340013765,1728328285996,-500.0,0.00040273,120]
[340013766,1728328286005,-538.11,0.00040273,120]
[340013767,1728328286015,-500.0,0.00040273,120]
[340013768,1728328286024,-500.0,0.00040273,120]
[340013769,1728328286033,-656.69,0.00040273,120]
[340013770,1728328286042,-500.0,0.00040273,120]
[340013771,1728328286051,-323.5,0.00040273,120]
[340013772,1728328286060,-500.0,0.00040273,120]
[340013773,1728328286070,-500.0,0.00040273,120]
[340013774,1728328286180,-227.93517809,0.00040273,120]
[340013775,1728328286191,-500.0,0.00040273,120]
[340013776,1728328286199,-502.44,0.00040273,120]
[340013777,1728328286211,-500.0,0.00040273,120]
[340013778,1728328286220,-500.0,0.00040273,120]
[340013779,1728328286230,-500.0,0.00040273,120]
[340013780,1728328286239,-500.0,0.00040273,120]
[340013781,1728328286248,-500.0,0.00040273,120]
[340013782,1728328286258,-500.0,0.00040273,120]
[340013783,1728328286267,-2246.05,0.00040273,120]
[340013784,1728328286277,-500.0,0.00040273,120]
[340013785,1728328286286,-427.2,0.00040273,120]
[340013786,1728328286295,-214.54227732,0.00040273,120]
[340013787,1728328286304,-500.0,0.00040273,120]
[340013788,1728328286314,-500.0,0.00040273,120]
[340013789,1728328286323,-500.0,0.00040273,120]
[340013790,1728328286332,-640.71,0.00040273,120]
[340013791,1728328286341,-500.0,0.00040273,120]
[340013792,1728328286350,-405.0,0.00040273,24]
[340013793,1728328286360,-623.22,0.00040273,120]
[340013794,1728328286369,-500.0,0.00040273,120]
[340013795,1728328286378,-500.0,0.00040273,120]
[340013796,1728328286388,-500.0,0.00040273,120]